bitfinex/quotes_ETHUSD_20260302
["timestamp","ask_amount","ask_price","bid_price","bid_amount"]
[1772471819207,1.21506682,2057.5,2056.3,1.21573107]
[1772471819507,2.03000876,2057.5,2056.3,1.21573107]
[1772471820502,0.81494194,2057.3,2056.3,1.21573107]
[1772471820707,1.21506682,2057.5,2056.4,0.75038336]
[1772471821080,1.21506682,2057.5,2056.4,0.75138336]
[1772471821276,2.03012689,2057.3,2056.4,0.001]
[1772471821481,0.81494194,2057.0,2056.2,0.001]
[1772471821903,0.81494194,2056.8,2056.2,0.001]
[1772471822703,0.14948499,2057.0,2056.2,0.001]
[1772471822902,0.81494194,2057.2,2056.2,0.001]
[1772471823407,1.21512588,2057.4,2056.2,0.75138336]
[1772471823878,2.03006782,2057.4,2056.2,0.75138336]
[1772471824074,0.81494194,2057.3,2056.2,0.001]
[1772471825504,2.03018596,2057.2,2056.2,0.001]
[1772471825806,4.86062157,2057.4,2056.2,0.75138336]
[1772471826886,0.81494194,2057.3,2056.2,0.75138336]
[1772471827079,0.81494194,2057.0,2056.2,0.001]
[1772471827284,0.81494194,2056.7,2056.1,0.001]
[1772471827485,1.21559856,2056.6,2056.1,0.001]
[1772471829014,1.21559856,2056.6,2055.9,0.001]
[1772471829582,0.81494194,2056.8,2055.9,0.001]
[1772471830689,4.86171293,2056.9,2055.9,0.001]
[1772471831702,0.81494194,2056.8,2055.9,0.001]
[1772471832500,4.86171293,2056.9,2055.1,1.96686917]
[1772471832502,3.3848259,2056.3,2055.1,1.96686917]
[1772471832726,0.81494194,2056.2,2055.1,1.96686917]
[1772471833512,0.96442693,2056.5,2055.2,0.75038336]
[1772471833691,1.21571678,2056.4,2055.3,1.21636744]
[1772471834014,1.21571678,2056.4,2055.4,0.75038336]
[1772471834519,1.21571678,2056.4,2056.1,0.001]
[1772471834689,1.21571678,2056.4,2055.4,0.75038336]
[1772471835186,1.21571678,2056.4,2055.9,0.001]
[1772471835407,1.21571678,2056.4,2055.4,0.75038336]
[1772471835609,1.21571678,2056.4,2055.6,0.001]
[1772471835814,7.43428101,2056.6,2055.6,0.001]
[1772471835815,0.002,2056.6,2055.6,0.001]
[1772471836489,0.002,2056.6,2055.6,0.74775232]
[1772471838587,0.002,2056.6,2055.7,1.21613075]
[1772471838794,0.002,2056.6,2055.6,1.96389361]
[1772471839001,3.43979534,2056.6,2055.6,1.21718838]
[1772471839302,0.86991138,2056.6,2055.6,1.21718838]
[1772471839501,0.86991138,2056.6,2055.6,0.001]
[1772471839701,0.86991138,2056.6,2055.6,1.21717318]
[1772471839896,0.72042639,2056.6,2055.6,1.21717318]
[1772471840110,0.72042639,2056.6,2055.6,1.94191642]
[1772471840719,1.21565767,2056.5,2055.6,1.94191642]
[1772471841035,1.93408406,2056.5,2055.6,0.001]
[1772471841208,0.71842639,2056.3,2055.6,0.001]
[1772471841707,2.71936895,2056.4,2054.7,0.001]
[1772471841708,0.86791138,2056.0,2054.7,0.001]
[1772471841900,3.28831035,2055.5,2054.7,0.001]
[1772471842210,0.86791138,2055.4,2054.7,0.001]
[1772471842389,2.56988396,2054.9,2054.4,0.001]
[1772471842594,2.56988396,2054.6,2053.5,1.94213319]
[1772471842795,1.21684108,2054.5,2053.5,1.94213319]
[1772471843092,1.21684108,2054.5,2052.9,4.87081363]
[1772471843093,0.14948499,2054.4,2052.7,0.72474324]
[1772471843311,0.14948499,2054.4,2052.8,0.72474324]
[1772471843620,1.21684108,2054.5,2052.8,0.72474324]
[1772471844329,0.14948499,2054.4,2052.8,0.72474324]
[1772471844534,0.86791138,2054.4,2052.8,0.72474324]
[1772471844695,1.21678185,2054.6,2053.0,0.72474324]
[1772471845098,0.71842639,2054.5,2053.0,0.72474324]
[1772471845437,1.21678185,2054.6,2053.0,0.72474324]
[1772471846204,1.21678185,2054.6,2052.6,1.94268485]
[1772471846205,0.71842639,2053.8,2052.6,1.94268485]
[1772471846497,0.71842639,2054.2,2052.7,0.72474324]
[1772471846904,1.21713729,2054.0,2052.9,0.72474324]
[1772471847331,1.21712141,2054.1,2052.9,0.72474324]
[1772471847546,1.21712141,2054.1,2053.2,0.001]
[1772471847859,3.28831035,2054.0,2053.2,0.001]
[1772471848008,0.71842639,2053.9,2053.2,0.001]
[1772471848428,0.71842639,2053.9,2053.0,0.001]
[1772471848429,0.86791138,2053.8,2053.0,0.001]
[1772471848630,0.71842639,2053.6,2053.0,0.001]
[1772471848908,1.21743364,2053.5,2053.0,0.001]
[1772471849841,1.84625585,2053.4,2052.7,0.001]
[1772471850044,2.56468224,2053.4,2052.7,0.001]
[1772471850239,1.21743364,2053.5,2052.7,0.001]
[1772471850441,1.21742012,2053.6,2052.7,0.001]
[1772471850729,1.21735299,2053.7,2052.7,0.001]
[1772471850910,1.21735299,2053.7,2052.7,0.72574324]
[1772471851709,1.21701879,2054.2,2052.7,0.72574324]
[1772471852241,4.86767214,2054.4,2052.7,0.72574324]
[1772471852432,2.56468224,2054.0,2052.7,0.72574324]
[1772471852736,0.86791138,2053.9,2052.7,0.72574324]
[1772471852905,1.21737436,2053.6,2052.7,1.94364627]
[1772471853343,1.21737436,2053.6,2052.7,0.72574324]
[1772471853529,1.21737436,2053.6,2052.7,1.21889682]
[1772471853906,1.21737436,2053.6,2052.7,0.001]
[1772471854106,1.84625585,2053.4,2052.7,0.001]
[1772471854321,0.14948499,2053.3,2052.7,0.001]
[1772471854644,0.71842639,2052.7,2051.3,2.63129715]
[1772471854820,0.71842639,2052.7,2051.6,1.21856112]
[1772471854821,4.87207377,2052.6,2051.6,1.21856112]
[1772471855021,3.7580477,2053.1,2051.6,1.21856112]
[1772471855022,1.21773015,2053.0,2051.7,0.72474324]
[1772471855220,0.14948499,2052.9,2051.7,0.72474324]
[1772471855424,2.56468224,2052.8,2051.7,0.72474324]
[1772471855943,0.14948499,2052.7,2051.7,0.72474324]
[1772471856343,1.84625585,2052.5,2051.4,1.94338132]
[1772471856637,1.84625585,2052.5,2051.4,0.72474324]
[1772471856938,1.21808614,2052.4,2051.4,0.72474324]
[1772471857141,0.14948499,2052.1,2051.0,0.72474324]
[1772471857439,0.78396239,2052.1,2050.8,2.10653543]
[1772471857640,0.065536,2052.3,2050.9,0.72474324]
[1772471857832,1.21808614,2052.4,2050.9,0.72474324]
[1772471858912,4.87162422,2052.9,2051.1,0.72474324]
[1772471860024,4.87162422,2052.9,2051.6,0.72574324]
[1772471860232,5.59005061,2052.9,2051.6,0.72574324]
[1772471860552,0.14948499,2052.8,2051.6,0.72574324]
[1772471860731,1.84625585,2052.5,2051.6,0.001]
[1772471860922,1.21814549,2052.3,2051.6,0.001]
[1772471861138,1.21814549,2052.3,2051.6,0.72574324]
[1772471861332,1.21814549,2052.3,2051.6,0.001]
[1772471862230,1.21814549,2052.3,2051.6,0.72574324]
[1772471862577,1.2181271,2052.4,2051.6,0.72574324]
[1772471863047,4.87164259,2052.7,2051.7,1.21850173]
[1772471863382,1.21767083,2053.1,2051.8,0.72474324]
[1772471863681,3.06392668,2053.1,2051.8,0.72474324]
[1772471863834,1.21767083,2053.1,2051.8,0.72474324]
[1772471864036,4.86940115,2053.7,2051.8,0.72474324]
[1772471864968,0.002,2053.8,2052.0,0.72474324]
[1772471865147,0.002,2053.8,2052.2,0.72474324]
[1772471865353,1.84825585,2053.8,2052.2,0.72474324]
[1772471866567,1.84625585,2053.5,2052.2,0.72474324]
[1772471866771,2.56468224,2053.5,2052.2,0.72474324]
[1772471867069,1.21749293,2053.4,2052.3,0.72474324]
[1772471867778,1.84625585,2052.7,2051.5,0.7019856]
[1772471868082,1.84625585,2052.4,2051.5,0.7019856]
[1772471868398,1.99574084,2052.6,2051.5,0.7019856]
[1772471868683,2.71161601,2052.6,2051.4,0.001]
[1772471868995,1.84625585,2052.3,2051.4,0.001]
[1772471869139,1.21820485,2052.2,2051.4,0.001]
[1772471869345,1.84625585,2052.0,2050.8,1.38177814]
[1772471869745,1.21820485,2052.2,2050.9,0.7019856]
[1772471871161,0.14948499,2052.2,2051.0,1.2189176]
[1772471871459,0.14948499,2052.0,2050.8,0.1627567]
[1772471871654,1.84625585,2051.8,2050.8,0.1627567]
[1772471871856,2.56213102,2052.1,2050.9,0.7019856]
[1772471872168,0.86536016,2052.0,2050.8,1.38179054]
[1772471872481,0.86536016,2052.0,2050.8,0.1627567]
[1772471872648,1.84625585,2051.8,2050.8,0.1627567]
[1772471873249,0.86536016,2052.0,2050.8,1.38179208]
[1772471873250,0.71587517,2051.9,2050.8,1.38179208]
[1772471873569,4.87353184,2052.1,2050.9,0.7019856]
[1772471873774,0.14948499,2052.1,2050.9,0.7019856]
[1772471873973,1.99574084,2052.1,2050.9,0.7019856]
[1772471874158,1.84625585,2052.1,2050.9,0.7019856]
[1772471874760,0.14948499,2052.1,2050.9,0.7019856]
[1772471874962,0.14948499,2052.1,2051.0,0.001]
[1772471875378,1.21832358,2052.0,2051.0,1.2199176]
[1772471875986,1.21832358,2052.0,2051.0,1.9219032]
[1772471876170,1.21832358,2052.0,2051.1,0.7019856]
[1772471877466,4.87329434,2052.3,2051.2,1.21879875]
[1772471878699,4.87329434,2052.3,2051.2,1.92078435]
[1772471879280,4.87329434,2052.3,2051.2,0.7019856]
[1772471879460,0.71587517,2052.2,2051.2,0.7019856]
[1772471879657,3.06452006,2052.1,2051.0,0.001]
[1772471879856,1.84625585,2051.8,2051.0,0.001]
[1772471880089,2.56213102,2051.8,2051.0,0.001]
[1772471880395,1.84625585,2051.8,2051.0,0.001]
[1772471880608,2.56213102,2051.8,2051.0,0.001]
[1772471880911,1.21826421,2052.1,2051.1,0.7019856]
[1772471881204,3.06452006,2052.1,2051.1,0.7019856]
[1772471881363,1.21826421,2052.1,2051.1,0.7019856]
[1772471881700,3.78039523,2052.1,2051.0,0.001]
[1772471881908,1.84625585,2051.8,2051.0,0.001]
[1772471882186,1.84625585,2051.5,2051.0,0.001]
[1772471882386,1.84625585,2051.5,2050.8,0.1637567]
[1772471882689,1.84625585,2051.5,2050.1,0.7019856]
[1772471882690,1.84625585,2051.2,2050.1,0.7019856]
[1772471882864,2.62766702,2051.8,2050.1,0.7019856]
[1772471883067,5.58893203,2052.2,2050.1,0.7019856]
[1772471883487,5.58893203,2052.2,2050.3,0.7019856]
[1772471883690,5.58893203,2052.2,2050.5,0.7019856]
[1772471884062,4.87305686,2052.2,2050.5,0.7019856]
[1772471884680,4.87223364,2052.5,2050.6,0.065536]
[1772471884879,4.87117376,2052.9,2050.9,0.7019856]
[1772471885587,1.84625585,2052.6,2050.9,0.7019856]
[1772471885789,1.21784879,2052.8,2051.1,0.7019856]
[1772471887493,1.21767083,2053.1,2051.3,0.7019856]
[1772471887881,0.002,2053.2,2051.5,0.7019856]
[1772471888962,0.002,2053.2,2051.7,0.7019856]
[1772471889368,1.84825585,2053.2,2051.7,0.7019856]
[1772471889602,0.002,2052.6,2051.7,0.7019856]
[1772471889807,0.002,2052.6,2051.8,1.92042794]
[1772471890122,0.002,2052.8,2051.9,0.7019856]
[1772471891108,0.002,2053.2,2051.9,0.7675216]
[1772471891315,1.21961753,2053.2,2051.9,0.7675216]
[1772471891507,1.21961753,2053.2,2051.9,0.7019856]
[1772471892024,1.21961753,2053.2,2052.1,0.7019856]
[1772471892185,1.21961753,2053.2,2052.2,0.7019856]
[1772471893015,0.002,2053.2,2052.2,0.7019856]
[1772471894005,0.002,2053.2,2052.3,1.92013109]
[1772471894207,0.002,2053.2,2052.4,0.7019856]
[1772471895989,0.002,2053.2,2052.2,1.2181609]
[1772471896913,0.74268804,2053.2,2052.1,1.21822947]
[1772471897512,0.002,2053.2,2052.1,1.91873783]
[1772471897882,1.21961153,2053.2,2052.1,0.70050836]
[1772471898087,0.68378796,2053.1,2051.9,1.21835273]
[1772471898314,1.21961153,2053.2,2052.0,0.70050836]
[1772471899896,0.002,2053.2,2052.0,0.70050836]
[1772471900098,0.002,2053.2,2052.2,0.70050836]
[1772471902025,0.002,2053.2,2052.3,1.91865385]
[1772471902232,0.002,2053.2,2052.4,0.70050836]
[1772471903895,0.002,2053.0,2052.4,0.70050836]
[1772471904087,0.002,2053.0,2052.5,1.21802679]
[1772471904831,0.002,2053.0,2052.4,1.91854715]
[1772471905393,0.002,2053.0,2052.4,0.70050836]
[1772471905611,0.002,2053.0,2052.3,0.001]
[1772471905821,0.002,2053.0,2052.3,1.21913706]
[1772471906005,0.002,2053.0,2052.3,0.001]
[1772471911146,0.002,2053.0,2052.3,0.70150836]
[1772471911595,0.002,2053.0,2052.3,0.001]
[1772471914032,0.002,2053.0,2052.3,0.70150836]
[1772471914834,0.002,2053.0,2052.4,0.70050836]
[1772471916854,0.002,2053.0,2052.3,0.001]
[1772471917235,0.002,2053.0,2052.3,0.70150836]
[1772471917544,0.002,2053.0,2052.5,0.001]
[1772471917755,0.002,2052.8,2052.5,0.70150836]
[1772471917961,0.002,2053.0,2052.5,0.70150836]
[1772471918143,0.002,2053.0,2052.5,0.001]
[1772471918862,1.90157742,2052.9,2052.5,0.001]
[1772471919226,1.21976059,2053.0,2052.5,0.001]
[1772471919455,0.002,2053.0,2052.5,0.70150836]
[1772471920981,0.002,2053.0,2052.6,1.21796745]
[1772471921457,0.002,2053.0,2052.6,1.91847581]
[1772471923366,0.002,2053.0,2052.6,1.91847566]
[1772471924638,0.002,2053.2,2052.7,0.70050836]
[1772471925460,0.002,2053.2,2052.8,1.21784879]
[1772471925764,0.002,2053.2,2052.7,1.21786033]
[1772471925958,0.002,2053.2,2052.6,1.2179368]
[1772471926155,0.002,2053.2,2052.6,1.91844516]
[1772471926365,0.002,2053.2,2052.7,0.70050836]
[1772471926954,0.002,2053.8,2052.7,0.70050836]
[1772471927357,0.67981253,2053.8,2052.7,0.70050836]
[1772471927565,0.67981253,2053.8,2052.7,1.91839817]
[1772471927566,1.21731508,2053.7,2052.7,1.91839817]
[1772471927774,0.67781253,2053.6,2052.7,0.70050836]
[1772471927963,0.67781253,2053.6,2052.6,1.21791602]
[1772471928160,0.67781253,2053.6,2052.7,0.70768365]
[1772471928670,1.21731508,2053.7,2052.7,0.70768365]
[1772471929584,4.87126035,2053.8,2052.8,1.21784879]
[1772471929788,4.87126035,2053.8,2052.9,0.70768365]
[1772471931168,0.002,2053.4,2052.9,0.70768365]
[1772471931571,0.002,2053.4,2053.0,1.21773015]
[1772471931805,0.67981253,2053.4,2052.6,0.70768365]
[1772471932089,0.67981253,2053.4,2052.5,0.001]
[1772471932090,0.67981253,2053.4,2052.5,1.21902295]
[1772471932288,0.67981253,2053.4,2052.5,0.001]
[1772471932650,0.67981253,2053.4,2052.5,1.21901617]
[1772471932881,0.67981253,2053.4,2052.5,1.21901691]
[1772471933054,0.67981253,2053.4,2052.5,1.21901604]
[1772471933378,0.67981253,2053.4,2052.5,0.001]
[1772471933548,1.36703722,2053.3,2052.3,0.001]
[1772471933746,0.67781253,2052.9,2052.0,0.001]
[1772471934777,0.67781253,2052.6,2052.0,0.001]
[1772471935661,0.67781253,2052.4,2052.0,0.001]
[1772471936252,0.62781253,2052.4,2052.0,0.001]
[1772471936559,0.62781253,2052.4,2051.1,1.92652298]
[1772471936769,3.80354915,2052.5,2050.8,5.58379519]
[1772471936770,0.67781253,2052.2,2050.8,5.58379519]
[1772471937164,0.67781253,2052.2,2050.8,1.92672012]
[1772471937476,0.67781253,2052.1,2050.7,1.21905513]
[1772471938176,0.67781253,2051.8,2050.7,0.70768365]
[1772471938562,1.21836833,2052.0,2050.7,0.70768365]
[1772471938763,1.21814549,2052.3,2050.7,0.70768365]
[1772471939057,0.67781253,2052.7,2050.9,0.70768365]
[1772471939782,1.21784879,2052.8,2051.1,0.70768365]
[1772471940484,1.21778946,2052.9,2051.3,0.70768365]
[1772471940978,4.87090454,2053.1,2051.5,0.70768365]
[1772471941183,0.002,2053.6,2051.5,0.70768365]
[1772471941483,0.002,2053.8,2052.5,0.70768365]
[1772471941781,0.002,2053.8,2052.4,0.065536]
[1772471941782,0.002,2053.8,2052.7,0.70768365]
[1772471941984,0.002,2054.3,2053.0,0.065536]
[1772471942154,0.002,2054.3,2053.1,0.70768365]
[1772471942359,0.002,2054.3,2053.3,0.70768365]
[1772471943354,0.67781253,2055.1,2053.3,0.77321965]
[1772471943572,0.67781253,2055.1,2053.4,0.70768365]
[1772471943771,1.21642662,2055.2,2053.4,0.70768365]
[1772471944200,0.002,2053.6,2053.4,0.70768365]
[1772471944358,4.8657065,2055.4,2053.6,0.70768365]
[1772471944559,0.002,2053.9,2053.6,0.70768365]
[1772471944758,4.8657065,2055.4,2053.6,0.70768365]
[1772471945004,4.8657065,2055.4,2053.8,0.70768365]
[1772471945594,0.67781253,2055.3,2053.8,0.70768365]
[1772471946159,4.8657065,2055.4,2053.8,0.70768365]
[1772471946468,0.67781253,2055.3,2053.8,1.21721648]
[1772471946790,0.67781253,2055.3,2053.7,1.92496134]
[1772471947099,0.67781253,2055.0,2053.3,0.70768365]
[1772471948765,0.67781253,2054.8,2053.4,1.21749293]
[1772471950494,1.21660421,2054.9,2052.9,0.70768365]
[1772471950495,0.67781253,2054.4,2052.9,0.70768365]
[1772471950669,1.21695954,2054.3,2053.0,1.9254138]
[1772471950864,1.89477207,2054.3,2053.0,1.9254138]
[1772471951300,0.67781253,2054.2,2053.0,1.9254138]
[1772471951468,0.67781253,2054.2,2052.9,1.2177652]
[1772471952470,0.67781253,2054.2,2052.9,1.92544885]
[1772471952908,0.67781253,2054.2,2052.7,4.87115787]
[1772471952909,1.21707803,2054.1,2053.0,0.70768365]
[1772471953196,2.31007803,2054.1,2053.0,0.70768365]
[1772471953702,2.98789056,2054.1,2053.0,0.70768365]
[1772471954274,1.21707803,2054.1,2053.0,0.70768365]
[1772471955002,1.21695954,2054.3,2053.2,0.69304409]
[1772471955427,0.63981008,2054.2,2053.2,0.69304409]
[1772471956073,2.30995954,2054.3,2053.2,0.69404409]
[1772471956269,1.21695954,2054.3,2053.2,0.69404409]
[1772471956535,0.002,2054.1,2053.2,0.69404409]
[1772471956838,0.002,2054.1,2053.2,1.62104409]
[1772471956973,0.002,2054.1,2053.3,1.21755223]
[1772471957172,0.002,2054.1,2053.2,1.91161076]
[1772471957372,0.002,2054.1,2053.3,0.64352201]
[1772471958710,0.67039544,2054.1,2053.2,0.001]
[1772471959001,0.002,2054.1,2053.4,1.21749293]
[1772471959371,0.002,2054.1,2053.5,0.64352201]
[1772471961171,0.002,2054.1,2053.2,1.86209158]
[1772471961375,0.66839544,2053.9,2053.2,0.001]
[1772471961774,1.091,2053.8,2053.2,0.001]
[1772471963202,1.21731508,2053.7,2053.2,0.001]
[1772471964400,2.64714717,2053.9,2053.2,0.001]
[1772471964602,1.21713729,2054.0,2053.2,0.64452201]
[1772471965080,0.002,2054.1,2053.2,0.64452201]
[1772471965299,0.002,2054.3,2053.5,0.64352201]
[1772471965799,0.002,2054.6,2053.7,0.64352201]
[1772471967229,0.002,2054.6,2053.9,0.64352201]
[1772471967878,0.002,2054.6,2053.8,0.926]
[1772471968610,0.002,2054.6,2053.9,0.64352201]
[1772471969284,0.002,2054.6,2054.0,1.21713729]
[1772471969814,0.002,2054.6,2054.1,0.64352201]
[1772471970497,2.30730826,2055.4,2054.2,0.64352201]
[1772471971612,2.30730826,2055.4,2054.4,0.64352201]
[1772471973091,1.21630826,2055.4,2054.4,0.64352201]
[1772471973294,3.14248888,2055.9,2054.5,0.64352201]
[1772471973599,4.86445295,2055.8,2054.7,0.64352201]
[1772471974311,1.21601245,2055.9,2054.7,0.64352201]
[1772471974489,1.21601245,2055.9,2054.7,1.56852201]
[1772471974694,0.6607958,2055.8,2054.6,1.21678185]
[1772471975080,0.6607958,2055.8,2054.7,0.64352201]
[1772471975316,1.7517958,2055.8,2054.7,0.64352201]
[1772471975606,1.7517958,2055.8,2054.8,1.21666342]
[1772471975607,1.21613075,2055.7,2054.8,1.21666342]
[1772471975809,1.21613075,2055.7,2054.8,1.86018543]
[1772471976016,1.21613075,2055.7,2054.9,0.64352201]
[1772471976198,1.21611443,2055.8,2054.9,0.64352201]
[1772471976584,4.86383867,2056.0,2054.9,0.64352201]
[1772471976785,1.21583503,2056.2,2054.9,0.64352201]
[1772471977024,1.21775788,2056.4,2054.9,0.64352201]
[1772471977490,0.002,2056.4,2055.1,0.64352201]
[1772471977894,0.002,2056.4,2055.3,0.64352201]
[1772471978098,0.002,2056.6,2055.5,0.64352201]
[1772471978494,0.002,2056.8,2055.8,0.64352201]
[1772471979014,1.21750626,2056.8,2056.0,0.64352201]
[1772471979384,0.002,2056.8,2056.0,0.64352201]
[1772471979604,0.002,2056.8,2056.2,0.64352201]
[1772471979811,0.002,2056.8,2055.9,8.27780119]
[1772471979812,0.002,2056.8,2055.9,4.05774653]
[1772471980015,0.002,2056.8,2056.1,0.64352201]
[1772471980616,0.002,2056.9,2056.1,0.64352201]
[1772471980993,0.002,2056.9,2056.2,1.56852201]
[1772471981195,0.002,2056.9,2056.2,0.64352201]
[1772471981698,0.002,2056.9,2056.2,1.85934418]
[1772471981899,0.002,2056.6,2056.2,1.21582217]
[1772471982206,0.002,2056.6,2056.2,1.85934418]
[1772471982408,0.002,2056.9,2056.3,0.64352201]
[1772471982409,0.002,2056.8,2056.3,0.64352201]
[1772471983110,0.002,2056.9,2056.3,0.64352201]
[1772471983600,0.002,2057.1,2056.3,0.64352201]
[1772471983808,0.002,2057.1,2056.5,0.64352201]
[1772471983995,0.002,2057.1,2056.7,0.64352201]
[1772471984193,0.002,2057.1,2056.7,1.56952201]
[1772471985219,0.002,2057.1,2056.4,1.85923879]
[1772471986625,0.002,2057.1,2056.4,1.21571678]
[1772471986864,0.002,2057.1,2056.2,1.2157921]
[1772471987196,0.6476602,2057.1,2056.0,1.2159533]
[1772471987394,0.60945986,2057.0,2055.7,1.21608511]
[1772471987835,0.60945986,2056.8,2055.7,1.21608511]
[1772471988054,1.21542126,2056.9,2055.8,0.64532254]
[1772471989216,1.82488112,2056.9,2055.9,0.927]
[1772471989430,0.60945986,2056.8,2055.9,0.927]
[1772471990332,1.21553945,2056.7,2056.0,1.2159533]
[1772471991114,1.21542126,2057.0,2056.1,0.64532254]
[1772471991741,0.60945986,2056.9,2055.9,2.14297659]
[1772471993442,0.60945986,2056.7,2055.9,2.14300928]
[1772471993650,0.60945986,2056.7,2055.9,0.927]
[1772471994549,0.60945986,2056.7,2055.9,0.928]
[1772471994745,0.60945986,2056.6,2055.3,0.926]
[1772471994947,0.60945986,2056.6,2055.6,0.001]
[1772471995166,0.60945986,2056.4,2055.6,0.001]
[1772471995324,1.82523576,2056.3,2055.6,0.001]
[1772471995836,0.60945986,2056.2,2055.6,0.001]
[1772471997348,1.82535402,2056.1,2055.6,0.001]
[1772471997923,0.60945986,2056.0,2055.6,0.001]
[1772471998454,1.69345986,2056.0,2055.0,1.21649903]
[1772471999118,0.60945986,2055.9,2054.9,2.78587917]
[1772471999324,1.21601245,2055.9,2055.0,0.64532254]
[1772472000343,1.21601245,2055.9,2055.0,1.56932254]
[1772472000727,1.21601245,2055.9,2054.7,3.2135823]
[1772472000728,0.60945986,2055.8,2054.7,3.2135823]
[1772472000928,0.60945986,2055.8,2054.7,5.35325216]
[1772472001234,1.21599619,2056.0,2054.8,0.64532254]
[1772472001426,1.21599619,2056.0,2055.0,0.64532254]
[1772472001825,1.2157759,2056.3,2055.0,0.64532254]
[1772472002229,0.60945986,2056.2,2055.1,0.923]
[1772472002739,0.60945986,2056.2,2055.1,1.56832254]
[1772472002923,1.21576391,2056.4,2055.2,0.64532254]
[1772472003546,2.29869987,2056.5,2055.4,0.64532254]
[1772472004753,1.21553945,2056.7,2055.4,0.64532254]
[1772472004954,0.60945986,2056.6,2055.5,0.924]
[1772472005256,0.60945986,2056.6,2055.5,1.56932254]
[1772472005666,1.82511753,2056.5,2055.6,1.21618992]
[1772472005959,1.085,2056.4,2055.5,2.78557008]
[1772472006127,1.69445986,2056.4,2055.5,2.14024754]
[1772472006327,1.69445986,2056.4,2055.5,2.14023861]
[1772472006545,0.60945986,2056.3,2055.5,2.14024689]
[1772472007156,1.21565767,2056.5,2055.6,0.64532254]
[1772472007774,4.86263068,2056.6,2055.7,1.21613075]
[1772472009150,5.47209054,2056.6,2055.6,1.86146481]
[1772472009376,0.002,2056.1,2055.6,1.86146481]
[1772472009953,4.86463068,2056.8,2055.6,1.86146481]
[1772472009954,0.002,2056.8,2055.6,1.21614227]
[1772472010265,0.002,2056.8,2055.7,0.64532254]
[1772472010466,0.002,2056.8,2055.9,0.64532254]
[1772472010684,0.002,2056.8,2056.3,0.64532254]
[1772472011575,0.002,2056.8,2056.3,1.56932254]
[1772472011777,0.002,2056.8,2056.4,1.21571678]
[1772472011984,0.002,2056.8,2056.4,1.86103932]
[1772472012879,0.002,2057.3,2056.5,0.64532254]
[1772472013890,0.60661671,2058.1,2056.7,0.64532254]
[1772472014095,0.60661671,2058.1,2056.9,0.64532254]
[1772472014986,0.60661671,2058.1,2056.6,1.8640788]
[1772472015165,0.60661671,2058.1,2056.7,0.925]
[1772472015494,0.60661671,2058.1,2056.8,0.64848024]
[1772472015796,1.21477162,2058.0,2056.9,1.21542126]
[1772472015993,1.21477162,2058.0,2057.0,0.64848024]
[1772472016796,1.21669696,2058.2,2057.0,0.64848024]
[1772472017514,0.002,2058.2,2057.0,0.64848024]
[1772472017668,1.21665448,2058.2,2057.0,0.64848024]
[1772472017868,0.002,2058.2,2057.2,0.58379902]
[1772472018175,0.002,2058.2,2057.4,0.58379902]
[1772472018581,0.002,2058.7,2057.7,0.065536]
[1772472018782,0.002,2058.7,2057.9,0.58379902]
[1772472018979,0.002,2058.7,2058.1,0.58379902]
[1772472019281,0.002,2059.4,2058.1,0.58379902]
[1772472019477,1.21626456,2058.9,2058.2,0.924]
[1772472019697,0.002,2058.9,2058.3,0.58379902]
[1772472019900,0.002,2058.9,2058.0,1.21477162]
[1772472020081,0.002,2058.9,2058.1,0.924]
[1772472021282,0.59941054,2058.9,2057.7,0.923]
[1772472021920,0.59941054,2058.9,2057.8,0.923]
[1772472022333,1.21429959,2058.8,2057.9,1.21483065]
[1772472022518,5.45652682,2058.9,2057.9,1.21483065]
[1772472022519,0.002,2058.9,2058.0,0.58379902]
[1772472022848,1.21624884,2058.9,2057.9,1.21483065]
[1772472022995,0.59605618,2058.8,2057.7,2.13794872]
[1772472023502,0.59670775,2058.7,2057.7,2.13794872]
[1772472023904,0.59670775,2058.7,2057.8,0.58379902]
[1772472023905,0.002,2058.7,2057.8,0.58379902]
[1772472024204,0.002,2058.7,2057.9,1.21483065]
[1772472024524,0.002,2058.7,2057.9,2.13783065]
[1772472025101,0.002,2058.7,2058.0,0.58379902]
[1772472025301,0.002,2058.9,2058.0,0.58379902]
[1772472026238,0.002,2058.9,2058.2,1.21465358]
[1772472026406,0.59469461,2058.9,2057.8,1.21488968]
[1772472028441,0.59010596,2058.7,2057.8,2.13788968]
[1772472028636,0.59010596,2058.7,2057.8,2.1378893]
[1772472028939,0.59010596,2058.7,2057.8,2.13788292]
[1772472029164,0.59010596,2058.7,2057.7,1.21490121]
[1772472029341,0.59010596,2058.7,2057.6,1.21496744]
[1772472029642,0.59010596,2058.7,2057.6,0.58379902]
[1772472029846,1.21429959,2058.8,2057.6,0.58379902]
[1772472030017,1.80308956,2058.8,2057.6,0.58379902]
[1772472030213,0.5874785,2058.7,2057.6,0.58379902]
[1772472030420,1.80189606,2058.6,2057.7,1.21494872]
[1772472030632,1.21441756,2058.6,2057.7,1.21494872]
[1772472030836,4.85739482,2058.8,2057.7,1.79874774]
[1772472033859,1.21624213,2058.9,2057.8,0.58379902]
[1772472034018,1.21624213,2058.9,2058.0,0.58379902]
[1772472034218,0.002,2058.9,2058.0,0.58379902]
[1772472035514,0.002,2058.6,2058.0,0.58379902]
[1772472035719,0.002,2058.6,2058.2,0.58379902]
[1772472035937,0.002,2058.6,2058.4,0.58379902]
[1772472036143,0.002,2058.6,2058.3,0.925]
[1772472037028,0.002,2058.8,2058.4,0.58379902]
[1772472037227,0.002,2058.8,2058.1,1.21471259]
[1772472037228,0.002,2058.8,2058.1,2.72451161]
[1772472037427,0.002,2058.8,2058.1,2.14071259]
[1772472037948,0.58043536,2058.7,2057.3,0.58379902]
[1772472038154,0.58043536,2058.7,2057.5,0.58379902]
[1772472039025,1.21629959,2058.8,2057.5,0.58379902]
[1772472039231,0.002,2058.8,2057.5,0.58379902]
[1772472039414,0.57995663,2058.8,2057.5,0.58379902]
[1772472039943,1.79425959,2058.8,2057.7,0.58379902]
[1772472040136,1.79425959,2058.8,2057.8,1.50979902]
[1772472041941,1.79425959,2058.8,2057.9,1.79862967]
[1772472042163,0.57544088,2058.7,2057.8,1.21484597]
[1772472043736,0.57544088,2058.7,2057.8,1.79864499]
[1772472043943,1.78982313,2058.7,2057.8,1.79864499]
[1772472045567,1.78982313,2058.7,2057.4,0.58379902]